[Event "*** Titled Tuesday Blitz"]
[Site "Chess.com"]
[Date "2021.03.16"]
[Round "9"]
[White "ukchessbomber"]
[Black "GregShahade"]
[Result "0-1"]
[WhiteElo "2518"]
[BlackElo "2764"]
[TimeControl "180+1"]
[EndTime "11:45:38 PDT"]
[Termination "GregShahade won by resignation"]

1. d4 {[%clk 0:03:00.9]} 1... Nf6 {[%clk 0:02:59.3]} 2. c4 {[%clk 0:03:01.5]}
2... g6 {[%clk 0:02:59.2]} 3. Nc3 {[%clk 0:03:02]} 3... d5 {[%clk 0:02:59.3]} 4.
cxd5 {[%clk 0:03:02.9]} 4... Nxd5 {[%clk 0:02:59]} 5. e4 {[%clk 0:03:03.8]} 5...
Nxc3 {[%clk 0:02:58.9]} 6. bxc3 {[%clk 0:03:04.7]} 6... Bg7 {[%clk 0:02:58.8]}
7. Be3 {[%clk 0:03:05.2]} 7... c5 {[%clk 0:02:58]} 8. Qd2 {[%clk 0:03:05.7]}
8... Qa5 {[%clk 0:02:51.8]} 9. Rc1 {[%clk 0:03:05.9]} 9... O-O {[%clk
0:02:51.5]} 10. Nf3 {[%clk 0:03:05.3]} 10... Rd8 {[%clk 0:02:50.7]} 11. d5
{[%clk 0:03:00.8]} 11... e6 {[%clk 0:02:41.4]} 12. Be2 {[%clk 0:02:58.4]} 12...
Qa4 {[%clk 0:02:34.9]} 13. c4 {[%clk 0:02:41]} 13... Na6 {[%clk 0:02:34]} 14.
O-O {[%clk 0:02:36.6]} 14... b6 {[%clk 0:02:32.6]} 15. Bh6 {[%clk 0:02:19.4]}
15... Bh8 {[%clk 0:01:59.1]} 16. Qg5 {[%clk 0:02:07.8]} 16... Re8 {[%clk
0:01:34.4]} 17. Bd3 {[%clk 0:01:34]} 17... Nb4 {[%clk 0:01:20.1]} 18. Bb1 {[%clk
0:01:30.4]} 18... Nxa2 {[%clk 0:01:18]} 19. Rce1 {[%clk 0:01:08.2]} 19... Nc3
{[%clk 0:01:15.6]} 20. Bd3 {[%clk 0:01:05.8]} 20... e5 {[%clk 0:01:09.6]} 21.
Qh4 {[%clk 0:00:38]} 21... Qd7 {[%clk 0:01:02]} 22. Bd2 {[%clk 0:00:36.5]} 22...
Na4 {[%clk 0:00:59.6]} 23. Ng5 {[%clk 0:00:35.7]} 23... f6 {[%clk 0:00:59.6]}
24. Nf3 {[%clk 0:00:25.6]} 24... a6 {[%clk 0:00:56.3]} 25. Ra1 {[%clk
0:00:21.3]} 25... b5 {[%clk 0:00:56.1]} 26. cxb5 {[%clk 0:00:18.1]} 26... axb5
{[%clk 0:00:57]} 27. Rfb1 {[%clk 0:00:18.5]} 27... c4 {[%clk 0:00:52.8]} 28. Bc2
{[%clk 0:00:18.5]} 28... Bb7 {[%clk 0:00:49.5]} 29. g4 {[%clk 0:00:15.7]} 29...
g5 {[%clk 0:00:35.7]} 30. Qg3 {[%clk 0:00:13.4]} 30... Nc5 {[%clk 0:00:34.7]}
31. h4 {[%clk 0:00:12.9]} 31... h6 {[%clk 0:00:29.2]} 32. hxg5 {[%clk
0:00:12.3]} 32... fxg5 {[%clk 0:00:28]} 33. Kg2 {[%clk 0:00:12.2]} 33... Rxa1
{[%clk 0:00:26.1]} 34. Rxa1 {[%clk 0:00:13.1]} 34... Bc8 {[%clk 0:00:26.1]} 35.
Be3 {[%clk 0:00:09.9]} 35... Nb3 {[%clk 0:00:16]} 36. Bxb3 {[%clk 0:00:08.4]}
36... cxb3 {[%clk 0:00:16.9]} 37. Nh2 {[%clk 0:00:08.9]} 37... b4 {[%clk
0:00:14.8]} 38. Bc5 {[%clk 0:00:06.8]} 38... Qb5 {[%clk 0:00:14]} 39. Qe3 {[%clk
0:00:06.5]} 39... Bf6 {[%clk 0:00:10.8]} 40. Rb1 {[%clk 0:00:06.1]} 40... Be7
{[%clk 0:00:10.9]} 41. Bxe7 {[%clk 0:00:06.3]} 41... Rxe7 {[%clk 0:00:11.4]} 42.
Qxb3 {[%clk 0:00:06.9]} 42... Qe2 {[%clk 0:00:10.6]} 43. Qxb4 {[%clk 0:00:06]}
43... Rf7 {[%clk 0:00:08.7]} 44. Qc5 {[%clk 0:00:05.6]} 44... Bxg4 {[%clk
0:00:07.8]} 45. Rb8+ {[%clk 0:00:04.6]} 45... Kg7 {[%clk 0:00:07.1]} 46. Qe3
{[%clk 0:00:03.7]} 46... Qxe3 {[%clk 0:00:05.5]} 47. fxe3 {[%clk 0:00:04.6]}
47... Bd7 {[%clk 0:00:05.3]} 48. Nf3 {[%clk 0:00:04.5]} 48... Re7 {[%clk
0:00:04.7]} 49. Rb7 {[%clk 0:00:04.6]} 49... Bh3+ {[%clk 0:00:04.5]} 50. Kxh3
{[%clk 0:00:03.7]} 50... Rxb7 {[%clk 0:00:05]} 51. Nxe5 {[%clk 0:00:04.3]} 51...
Re7 {[%clk 0:00:05.6]} 52. Nc6 {[%clk 0:00:01.6]} 52... Rxe4 {[%clk 0:00:05.1]}
53. d6 {[%clk 0:00:02.2]} 53... Rxe3+ {[%clk 0:00:05.7]} 54. Kg4 {[%clk
0:00:02.9]} 54... Rd3 {[%clk 0:00:05.8]} 55. Kh5 {[%clk 0:00:01.8]} 55... Rxd6
{[%clk 0:00:05.7]} 56. Nd4 {[%clk 0:00:02.7]} 56... Rf6 {[%clk 0:00:05.5]} 57.
Nf5+ {[%clk 0:00:02.9]} 57... Rxf5 {[%clk 0:00:05.2]} 0-1

[Event "*** Titled Tuesday Blitz"]
[Site "Chess.com"]
[Date "2021.03.16"]
[Round "9"]
[White "mbachez"]
[Black "GMJustin"]
[Result "1/2-1/2"]
[WhiteElo "2484"]
[BlackElo "2328"]
[TimeControl "180+1"]
[EndTime "11:45:48 PDT"]
[Termination "Game drawn by stalemate"]

1. e4 {[%clk 0:03:00.9]} 1... c5 {[%clk 0:02:59.7]} 2. Nf3 {[%clk 0:03:00.8]}
2... d6 {[%clk 0:02:59.9]} 3. Bb5+ {[%clk 0:02:59.9]} 3... Bd7 {[%clk
0:02:59.9]} 4. Bxd7+ {[%clk 0:02:58.1]} 4... Qxd7 {[%clk 0:02:59.5]} 5. O-O
{[%clk 0:02:58.8]} 5... Nf6 {[%clk 0:02:58.7]} 6. Qe2 {[%clk 0:02:58.3]} 6...
Nc6 {[%clk 0:02:54.2]} 7. Rd1 {[%clk 0:02:58.3]} 7... g5 {[%clk 0:02:43.6]} 8.
d4 {[%clk 0:02:40.3]} 8... g4 {[%clk 0:02:34.5]} 9. Ne5 {[%clk 0:02:16.7]} 9...
dxe5 {[%clk 0:02:06.7]} 10. dxe5 {[%clk 0:02:11.8]} 10... Nd4 {[%clk 0:02:06.3]}
11. Qd3 {[%clk 0:02:03.7]} 11... Nxe4 {[%clk 0:01:29.6]} 12. c3 {[%clk
0:01:52.8]} 12... Nf3+ {[%clk 0:01:15.2]} 13. gxf3 {[%clk 0:01:51.2]} 13... Qxd3
{[%clk 0:01:14.3]} 14. Rxd3 {[%clk 0:01:47.2]} 14... gxf3 {[%clk 0:01:14.5]} 15.
Nd2 {[%clk 0:01:18.5]} 15... Rg8+ {[%clk 0:01:09.8]} 16. Kf1 {[%clk 0:01:16.2]}
16... c4 {[%clk 0:00:30.9]} 17. Nxc4 {[%clk 0:01:10.4]} 17... Rg2 {[%clk
0:00:26.4]} 18. Rxf3 {[%clk 0:01:05]} 18... Rxh2 {[%clk 0:00:25.3]} 19. Kg1
{[%clk 0:00:52.3]} 19... Rh5 {[%clk 0:00:24.3]} 20. Be3 {[%clk 0:00:44.2]} 20...
Rc8 {[%clk 0:00:15.4]} 21. Na3 {[%clk 0:00:28.4]} 21... Rxe5 {[%clk 0:00:14.3]}
22. Bxa7 {[%clk 0:00:28.3]} 22... Rg5+ {[%clk 0:00:13.4]} 23. Kh2 {[%clk
0:00:21.2]} 23... Rc6 {[%clk 0:00:13]} 24. Rf1 {[%clk 0:00:15.1]} 24... Rh6+
{[%clk 0:00:12.1]} 25. Rh3 {[%clk 0:00:14.2]} 25... Rxh3+ {[%clk 0:00:11.4]} 26.
Kxh3 {[%clk 0:00:14.6]} 26... e6 {[%clk 0:00:11.5]} 27. Be3 {[%clk 0:00:14.4]}
27... Rf5 {[%clk 0:00:11.3]} 28. Kg4 {[%clk 0:00:14.1]} 28... Bxa3 {[%clk
0:00:10.7]} 29. bxa3 {[%clk 0:00:13.8]} 29... Nxc3 {[%clk 0:00:10.6]} 30. Rh1
{[%clk 0:00:13.8]} 30... Nd5 {[%clk 0:00:09.9]} 31. Rxh7 {[%clk 0:00:12.5]}
31... Nxe3+ {[%clk 0:00:09.8]} 32. fxe3 {[%clk 0:00:13.4]} 32... Ra5 {[%clk
0:00:09.7]} 33. Rh8+ {[%clk 0:00:12.5]} 33... Kd7 {[%clk 0:00:09.5]} 34. Rb8
{[%clk 0:00:12.9]} 34... Kc6 {[%clk 0:00:08.7]} 35. Rc8+ {[%clk 0:00:12.4]}
35... Kb6 {[%clk 0:00:07.1]} 36. Rc3 {[%clk 0:00:13.1]} 36... f6 {[%clk
0:00:05.9]} 37. Kf4 {[%clk 0:00:13.3]} 37... Ra4+ {[%clk 0:00:05.4]} 38. Kf3
{[%clk 0:00:12.4]} 38... f5 {[%clk 0:00:05.6]} 39. Rd3 {[%clk 0:00:11.4]} 39...
Kc6 {[%clk 0:00:05.3]} 40. Rc3+ {[%clk 0:00:11.4]} 40... Kd5 {[%clk 0:00:05]}
41. Rd3+ {[%clk 0:00:10.1]} 41... Ke5 {[%clk 0:00:04.5]} 42. Rb3 {[%clk
0:00:10]} 42... b6 {[%clk 0:00:02.8]} 43. Rb5+ {[%clk 0:00:09.5]} 43... Kf6
{[%clk 0:00:02.8]} 44. Rb3 {[%clk 0:00:09.5]} 44... b5 {[%clk 0:00:02.9]} 45.
Rc3 {[%clk 0:00:08.6]} 45... e5 {[%clk 0:00:03.1]} 46. Rb3 {[%clk 0:00:08.7]}
46... Kg5 {[%clk 0:00:02.9]} 47. Rxb5 {[%clk 0:00:07.2]} 47... e4+ {[%clk
0:00:03.1]} 48. Kg3 {[%clk 0:00:07.5]} 48... Rxa3 {[%clk 0:00:03.5]} 49. Rb3
{[%clk 0:00:07.6]} 49... Rxa2 {[%clk 0:00:03.4]} 50. Rc3 {[%clk 0:00:08]} 50...
Re2 {[%clk 0:00:03.2]} 51. Rb3 {[%clk 0:00:08]} 51... Rxe3+ {[%clk 0:00:03.4]}
52. Rxe3 {[%clk 0:00:07.5]} 52... f4+ {[%clk 0:00:04.1]} 53. Kf2 {[%clk
0:00:08]} 53... fxe3+ {[%clk 0:00:04.5]} 54. Kxe3 {[%clk 0:00:08.9]} 54... Kf5
{[%clk 0:00:05]} 55. Ke2 {[%clk 0:00:09.4]} 55... Kf4 {[%clk 0:00:05.5]} 56. Kf2
{[%clk 0:00:09.7]} 56... e3+ {[%clk 0:00:06]} 57. Ke2 {[%clk 0:00:10]} 57... Ke4
{[%clk 0:00:06.4]} 58. Ke1 {[%clk 0:00:10.2]} 58... Kd4 {[%clk 0:00:06.7]} 59.
Ke2 {[%clk 0:00:09.8]} 59... Ke4 {[%clk 0:00:06.9]} 60. Ke1 {[%clk 0:00:10]}
60... Ke5 {[%clk 0:00:07.3]} 61. Ke2 {[%clk 0:00:10.9]} 61... Kf4 {[%clk
0:00:07.6]} 62. Ke1 {[%clk 0:00:11.6]} 62... Kf3 {[%clk 0:00:08.1]} 63. Kf1
{[%clk 0:00:11.7]} 63... e2+ {[%clk 0:00:07.6]} 64. Ke1 {[%clk 0:00:11.6]} 64...
Ke3 {[%clk 0:00:08.3]} 1/2-1/2

[Event "*** Titled Tuesday Blitz"]
[Site "Chess.com"]
[Date "2021.03.16"]
[Round "9"]
[White "Sergey85Rodchenkov"]
[Black "sokidze"]
[Result "0-1"]
[WhiteElo "2536"]
[BlackElo "2703"]
[TimeControl "180+1"]
[EndTime "11:46:01 PDT"]
[Termination "sokidze won on time"]

1. e4 {[%clk 0:03:00.9]} 1... c5 {[%clk 0:03:00]} 2. Nf3 {[%clk 0:03:00.9]} 2...
Nc6 {[%clk 0:03:00.2]} 3. d4 {[%clk 0:03:00.9]} 3... cxd4 {[%clk 0:03:00.8]} 4.
Nxd4 {[%clk 0:03:01.1]} 4... g6 {[%clk 0:03:01.2]} 5. Nc3 {[%clk 0:03:00.7]}
5... Bg7 {[%clk 0:03:01.3]} 6. Nb3 {[%clk 0:03:01]} 6... d6 {[%clk 0:03:00.5]}
7. Be2 {[%clk 0:03:00.9]} 7... Nf6 {[%clk 0:02:59.7]} 8. O-O {[%clk 0:03:00.9]}
8... O-O {[%clk 0:03:00.1]} 9. Re1 {[%clk 0:03:00.6]} 9... a6 {[%clk 0:02:57.5]}
10. Bg5 {[%clk 0:03:00.1]} 10... b5 {[%clk 0:02:55.8]} 11. Bf1 {[%clk
0:02:59.3]} 11... Bb7 {[%clk 0:02:52]} 12. Qd2 {[%clk 0:02:59.1]} 12... Nd7
{[%clk 0:02:49.4]} 13. Bh6 {[%clk 0:02:48.3]} 13... Nc5 {[%clk 0:02:42.1]} 14.
Bxg7 {[%clk 0:02:48]} 14... Kxg7 {[%clk 0:02:43]} 15. Rad1 {[%clk 0:02:41]}
15... Ne6 {[%clk 0:02:04.3]} 16. Nd5 {[%clk 0:02:36.8]} 16... Rc8 {[%clk
0:02:03]} 17. h4 {[%clk 0:02:31.4]} 17... Ne5 {[%clk 0:01:56.6]} 18. c3 {[%clk
0:02:18.2]} 18... Nc4 {[%clk 0:01:54.8]} 19. Bxc4 {[%clk 0:02:17]} 19... bxc4
{[%clk 0:01:51.6]} 20. Nd4 {[%clk 0:02:16]} 20... Nc5 {[%clk 0:01:51.4]} 21. h5
{[%clk 0:02:04]} 21... e6 {[%clk 0:01:46.3]} 22. h6+ {[%clk 0:02:04]} 22... Kg8
{[%clk 0:01:46.7]} 23. Nb4 {[%clk 0:01:33.9]} 23... a5 {[%clk 0:01:43.4]} 24.
Nbc2 {[%clk 0:01:33.3]} 24... Nxe4 {[%clk 0:01:38.5]} 25. Qe3 {[%clk 0:01:17.2]}
25... d5 {[%clk 0:01:34.2]} 26. f3 {[%clk 0:01:13.6]} 26... Nd6 {[%clk
0:01:09.8]} 27. Qe5 {[%clk 0:01:10.5]} 27... Ne8 {[%clk 0:01:10]} 28. Ne3 {[%clk
0:00:21.2]} 28... Qf6 {[%clk 0:01:07.6]} 29. Qg3 {[%clk 0:00:20]} 29... Kh8
{[%clk 0:00:37.7]} 30. Ng4 {[%clk 0:00:19.7]} 30... Qg5 {[%clk 0:00:28.4]} 31.
Re5 {[%clk 0:00:19.2]} 31... Qe7 {[%clk 0:00:26.7]} 32. Rde1 {[%clk 0:00:19.4]}
32... Rd8 {[%clk 0:00:16.8]} 33. R5e2 {[%clk 0:00:18.9]} 33... Qd6 {[%clk
0:00:13.7]} 34. Qh4 {[%clk 0:00:18.6]} 34... Qd7 {[%clk 0:00:05.8]} 35. Ne5
{[%clk 0:00:17.4]} 35... Qc7 {[%clk 0:00:06.2]} 36. Qf4 {[%clk 0:00:16.6]} 36...
Kg8 {[%clk 0:00:05.9]} 37. Qh4 {[%clk 0:00:15.6]} 37... Bc8 {[%clk 0:00:04.5]}
38. Ng4 {[%clk 0:00:15.5]} 38... Nd6 {[%clk 0:00:02.8]} 39. Nf6+ {[%clk
0:00:12.3]} 39... Kh8 {[%clk 0:00:03.2]} 40. g4 {[%clk 0:00:10.9]} 40... Qe7
{[%clk 0:00:03]} 41. g5 {[%clk 0:00:11.1]} 41... Nb7 {[%clk 0:00:02.7]} 42. f4
{[%clk 0:00:10.6]} 42... Nc5 {[%clk 0:00:02.8]} 43. Nf3 {[%clk 0:00:10.3]} 43...
Ne4 {[%clk 0:00:02.1]} 44. Ne5 {[%clk 0:00:09.7]} 44... Nxf6 {[%clk 0:00:02.4]}
45. gxf6 {[%clk 0:00:09.6]} 45... Qc5+ {[%clk 0:00:03.1]} 46. Kh2 {[%clk
0:00:09.2]} 46... d4 {[%clk 0:00:03.8]} 47. Rd2 {[%clk 0:00:08.1]} 47... Bb7
{[%clk 0:00:03.5]} 48. Red1 {[%clk 0:00:06.9]} 48... d3 {[%clk 0:00:03.3]} 49.
Re1 {[%clk 0:00:06.8]} 49... Qd5 {[%clk 0:00:03.6]} 50. Qg3 {[%clk 0:00:06.6]}
50... a4 {[%clk 0:00:03.6]} 51. a3 {[%clk 0:00:06]} 51... Ba8 {[%clk 0:00:04]}
52. Qe3 {[%clk 0:00:05.8]} 52... Rb8 {[%clk 0:00:04.3]} 53. Rf1 {[%clk
0:00:05.9]} 53... Rb7 {[%clk 0:00:04.7]} 54. Kg3 {[%clk 0:00:05.2]} 54... Rfb8
{[%clk 0:00:05]} 55. Rff2 {[%clk 0:00:05.5]} 55... Kg8 {[%clk 0:00:05.2]} 56.
Ng4 {[%clk 0:00:05.4]} 56... Qh1 {[%clk 0:00:05]} 57. Nh2 {[%clk 0:00:04.9]}
57... Qg1+ {[%clk 0:00:04.8]} 58. Kh3 {[%clk 0:00:05.3]} 58... Rc7 {[%clk
0:00:03.5]} 59. Ng4 {[%clk 0:00:04.8]} 59... Qh1+ {[%clk 0:00:03.6]} 60. Kg3
{[%clk 0:00:04.6]} 60... Rcb7 {[%clk 0:00:04]} 61. Ne5 {[%clk 0:00:04.4]} 61...
Rb3 {[%clk 0:00:04.1]} 62. Rh2 {[%clk 0:00:03.5]} 62... Qd5 {[%clk 0:00:03.4]}
63. Rhf2 {[%clk 0:00:02.7]} 63... R3b7 {[%clk 0:00:03.9]} 64. Rh2 {[%clk
0:00:02.1]} 64... Rc7 {[%clk 0:00:04.3]} 65. Rhf2 {[%clk 0:00:01.5]} 65... Qb7
{[%clk 0:00:05]} 66. Rf1 {[%clk 0:00:01.5]} 66... Qb6 {[%clk 0:00:05.6]} 67. Re1
{[%clk 0:00:01.7]} 67... Bd5 {[%clk 0:00:05.5]} 0-1

[Event "*** Titled Tuesday Blitz"]
[Site "Chess.com"]
[Date "2021.03.16"]
[Round "9"]
[White "DenLaz"]
[Black "Jospem"]
[Result "1/2-1/2"]
[WhiteElo "2863"]
[BlackElo "2937"]
[TimeControl "180+1"]
[EndTime "11:46:16 PDT"]
[Termination "Game drawn by repetition"]

1. d4 {[%clk 0:03:00.6]} 1... Nf6 {[%clk 0:03:00.6]} 2. c4 {[%clk 0:03:00.8]}
2... e6 {[%clk 0:03:01.1]} 3. Nf3 {[%clk 0:03:01.3]} 3... Bb4+ {[%clk
0:03:01.2]} 4. Bd2 {[%clk 0:03:00.9]} 4... Qe7 {[%clk 0:03:01.4]} 5. g3 {[%clk
0:03:00.7]} 5... Bxd2+ {[%clk 0:03:02.1]} 6. Qxd2 {[%clk 0:03:00.4]} 6... Nc6
{[%clk 0:03:02.5]} 7. Nc3 {[%clk 0:02:59.5]} 7... d5 {[%clk 0:03:02.8]} 8. cxd5
{[%clk 0:02:54]} 8... exd5 {[%clk 0:03:02.7]} 9. Bg2 {[%clk 0:02:54.4]} 9... O-O
{[%clk 0:03:03.4]} 10. O-O {[%clk 0:02:54.3]} 10... Bg4 {[%clk 0:02:59.5]} 11.
e3 {[%clk 0:02:52.9]} 11... Rad8 {[%clk 0:02:52.9]} 12. Rfc1 {[%clk 0:02:47.3]}
12... a6 {[%clk 0:02:42.8]} 13. Ne1 {[%clk 0:02:45]} 13... Na7 {[%clk
0:02:36.4]} 14. Nd3 {[%clk 0:02:41.2]} 14... c6 {[%clk 0:02:36.9]} 15. f3 {[%clk
0:02:26.3]} 15... Bf5 {[%clk 0:02:30.5]} 16. Nf2 {[%clk 0:02:23.1]} 16... Nb5
{[%clk 0:02:23.2]} 17. Re1 {[%clk 0:02:15.6]} 17... Qd7 {[%clk 0:02:12.2]} 18.
Rad1 {[%clk 0:02:10.4]} 18... Rfe8 {[%clk 0:02:04]} 19. Ne2 {[%clk 0:02:01.1]}
19... Nd6 {[%clk 0:02:03.2]} 20. b3 {[%clk 0:02:00.8]} 20... h6 {[%clk
0:02:01.3]} 21. g4 {[%clk 0:01:58.9]} 21... Bh7 {[%clk 0:01:53.5]} 22. Nf4
{[%clk 0:01:57.8]} 22... Qc7 {[%clk 0:01:43.8]} 23. h3 {[%clk 0:01:47.1]} 23...
Re7 {[%clk 0:01:43.2]} 24. Re2 {[%clk 0:01:23.1]} 24... Rde8 {[%clk 0:01:39.5]}
25. Rde1 {[%clk 0:01:23.5]} 25... Qb6 {[%clk 0:01:29.9]} 26. h4 {[%clk
0:01:10.7]} 26... Nd7 {[%clk 0:01:26.3]} 27. e4 {[%clk 0:00:53.1]} 27... dxe4
{[%clk 0:01:08.6]} 28. fxe4 {[%clk 0:00:54]} 28... Nb5 {[%clk 0:01:09.1]} 29.
Rd1 {[%clk 0:00:52.9]} 29... Nf8 {[%clk 0:01:03.7]} 30. g5 {[%clk 0:00:37.4]}
30... hxg5 {[%clk 0:01:02.4]} 31. hxg5 {[%clk 0:00:38.3]} 31... Ng6 {[%clk
0:01:02]} 32. Nxg6 {[%clk 0:00:37]} 32... Bxg6 {[%clk 0:01:02.9]} 33. a4 {[%clk
0:00:29.6]} 33... Nd6 {[%clk 0:00:59.1]} 34. Qf4 {[%clk 0:00:26.5]} 34... Rd8
{[%clk 0:00:50.6]} 35. Rd3 {[%clk 0:00:25.5]} 35... Ne8 {[%clk 0:00:30.5]} 36.
Red2 {[%clk 0:00:22.9]} 36... Red7 {[%clk 0:00:29]} 37. Qe3 {[%clk 0:00:19.3]}
37... Nc7 {[%clk 0:00:28.2]} 38. Bh3 {[%clk 0:00:19.8]} 38... Re7 {[%clk
0:00:28.1]} 39. Qf4 {[%clk 0:00:16.7]} 39... Qa5 {[%clk 0:00:21.4]} 40. Qh4
{[%clk 0:00:14.6]} 40... Ree8 {[%clk 0:00:13.3]} 41. Bg2 {[%clk 0:00:13.9]}
41... Ne6 {[%clk 0:00:12.9]} 42. Nh3 {[%clk 0:00:10.6]} 42... Qb6 {[%clk
0:00:10.7]} 43. Qf2 {[%clk 0:00:10.5]} 43... Qa5 {[%clk 0:00:10.1]} 44. d5
{[%clk 0:00:10.6]} 44... cxd5 {[%clk 0:00:09.8]} 45. Rxd5 {[%clk 0:00:11.5]}
45... Qc7 {[%clk 0:00:09]} 46. Rxd8 {[%clk 0:00:11]} 46... Rxd8 {[%clk
0:00:09.9]} 47. Rxd8+ {[%clk 0:00:11.1]} 47... Qxd8 {[%clk 0:00:10.8]} 48. Qe3
{[%clk 0:00:11.8]} 48... Qd1+ {[%clk 0:00:10.7]} 49. Kh2 {[%clk 0:00:12.1]}
49... Qd6+ {[%clk 0:00:10.9]} 50. e5 {[%clk 0:00:12.4]} 50... Qc7 {[%clk
0:00:10.1]} 51. Nf2 {[%clk 0:00:11.5]} 51... b5 {[%clk 0:00:08.6]} 52. axb5
{[%clk 0:00:11.1]} 52... axb5 {[%clk 0:00:09.5]} 53. Bd5 {[%clk 0:00:11.8]}
53... Bf5 {[%clk 0:00:08.3]} 54. Kg3 {[%clk 0:00:11.3]} 54... g6 {[%clk
0:00:08.5]} 55. b4 {[%clk 0:00:09.1]} 55... Ng7 {[%clk 0:00:08.9]} 56. Qd4
{[%clk 0:00:07.5]} 56... Bd7 {[%clk 0:00:07.8]} 57. Be4 {[%clk 0:00:07.8]} 57...
Ne6 {[%clk 0:00:07.5]} 58. Qd6 {[%clk 0:00:08.2]} 58... Qxd6 {[%clk 0:00:07.8]}
59. exd6 {[%clk 0:00:09.1]} 59... Nxg5 {[%clk 0:00:08.7]} 60. Kf4 {[%clk
0:00:09.5]} 60... Ne6+ {[%clk 0:00:03.8]} 61. Ke5 {[%clk 0:00:09.9]} 61... Kg7
{[%clk 0:00:04.4]} 62. Nd3 {[%clk 0:00:08.4]} 62... f6+ {[%clk 0:00:04.1]} 63.
Kd5 {[%clk 0:00:08.9]} 63... Kf7 {[%clk 0:00:02.8]} 64. Nc5 {[%clk 0:00:09.2]}
64... Nf4+ {[%clk 0:00:02.5]} 65. Kd4 {[%clk 0:00:09.5]} 65... Ke8 {[%clk
0:00:03.1]} 66. Ke3 {[%clk 0:00:08]} 66... g5 {[%clk 0:00:03.7]} 67. Bf3 {[%clk
0:00:04.7]} 67... Kd8 {[%clk 0:00:03.5]} 68. Kd4 {[%clk 0:00:03.1]} 68... Ne6+
{[%clk 0:00:02.8]} 69. Kd5 {[%clk 0:00:03]} 69... Nf4+ {[%clk 0:00:03.4]} 70.
Kd4 {[%clk 0:00:03.4]} 70... Ke8 {[%clk 0:00:03]} 71. Ne4 {[%clk 0:00:03.6]}
71... Kf7 {[%clk 0:00:02.7]} 72. Nc5 {[%clk 0:00:04.2]} 72... Ke8 {[%clk
0:00:03.1]} 73. Ne4 {[%clk 0:00:04.1]} 73... Kf7 {[%clk 0:00:02.1]} 74. Nc5
{[%clk 0:00:04.4]} 74... Ne6+ {[%clk 0:00:01.9]} 75. Kd5 {[%clk 0:00:04.3]}
75... Nf4+ {[%clk 0:00:02.3]} 76. Kd4 {[%clk 0:00:04.6]} 1/2-1/2